Cogmind - Beta 13 @@@ ROGUE MODE // 2024.04.11 @ 00:02:41 Player: arcadio rl Result: Destroyed by Y-45 Defender with Beam Rifle Performance ------------- Evolutions (0) 0 Regions Visited (3) 600 Robots Destroyed (26) 130 Value Destroyed (715) 715 Prototype IDs (10) 200 Alien Tech Used (0) 0 Bonus (0) 0 TOTAL SCORE: 1645 Bonus ------- None Cogmind --------- Core Integrity 0/250 Matter 270/300 Energy 125/125 System Corruption 0% Temperature Cool (9) Movement Treading (160) Location -9/Recycling Parts ------- > --- POWER (1) -------- Light Ion Engine > --- PROPULSION (2) --- Spiked Treads Spiked Treads > --- UTILITY (2) ------ Scrap Shield > --- WEAPON (2) ------- Subdweller Machine Gun Battle Cannon > --- INVENTORY (5) ---- Heavy Riot Gun Peak State ------------ > --- POWER ------------ Subdweller Power Source > --- PROPULSION ------- Spiked Treads Spiked Treads > --- UTILITY ---------- Scrap Engine > --- WEAPON ----------- Subdweller Machine Gun Battle Cannon > --- INVENTORY -------- Scrap Shield Heavy Riot Gun [Rating: 26] Favorites ----------- Power Light Ion Engine Engine Light Ion Engine Propulsion Wheel Treads Light Treads Leg Aluminum Leg Wheel Wheel Utility Large Storage Unit Device Scrap Engine Storage Large Storage Unit Processor Targeting Computer Protection Light Armor Plating Weapon Subdweller Machine Gun Energy Gun EM Pulse Gun Energy Cannon Subdweller Beam Cannon Ballistic Gun Subdweller Machine Gun Ballistic Cannon Battle Cannon Launcher Subdweller Shrapnel Launcher Special Weapon Mining Laser Build | -11 -10 -10 -9 ------- Run | Yrd Mat Sub Rec Slots Evolved . | . . . . Power . | . . . . Propulsion . | . . . . Utility . | . . . . Weapon . | . . . . Parts Attached 53 | 6 10 33 4 Power 7 | 1 . 5 1 Engine 7 | 1 . 5 1 Core . | . . . . Reactor . | . . . . Propulsion 11 | 2 1 8 . Treads 3 | . . 3 . Leg 1 | . . 1 . Wheel 7 | 2 1 4 . Hover . | . . . . Flight . | . . . . Utility 11 | 1 4 4 2 Device 2 | . . 1 1 Storage 5 | 1 3 1 . Processor 1 | . 1 . . Hackware . | . . . . Protection 3 | . . 2 1 Artifact . | . . . . Weapon 24 | 2 5 16 1 Energy Gun 10 | 1 3 6 . Energy Cannon 2 | . . 2 . Ballistic Gun 5 | 1 . 3 1 Ballistic Cannon 1 | . . 1 . Launcher 3 | . . 3 . Special Weapon 3 | . 2 1 . Impact Weapon . | . . . . Slashing Weapon . | . . . . Piercing Weapon . | . . . . Special Melee Weapon . | . . . . Unidentified Prototypes . | . . . . Parts Lost 13 | . . 13 . Power 2 | . . 2 . Propulsion 4 | . . 4 . Utility 2 | . . 2 . Weapon 5 | . . 5 . Highest Loss Streak 7 | . . 7 . To Critical Strikes . | . . . . Average Slot Usage (%) 95 | . 99 96 84 Engine 13 | . 14 13 13 Treads 11 | . . 10 28 Leg 6 | . . 8 . Wheel 9 | . 28 8 . Device 1 | . . . 12 Storage 11 | . 18 12 . Processor 1 | . 9 . . Protection 9 | . . 12 1 Energy Gun 5 | . 24 3 . Energy Cannon 3 | . . 5 . Ballistic Gun 14 | . 1 16 13 Ballistic Cannon 1 | . . . 14 Special Weapon 1 | . 1 1 . Naked Turns . | . . . . Heaviest Build 40 | 11 27 40 33 Greatest Support 40 | 20 20 40 40 Greatest Overweight (x) 13 | . 1 13 . Average Overweight (x) . | . . . . Largest Inventory Capacity 15 | 8 15 15 15 Average Capacity 12 | 6 12 13 5 Most Carried 15 | 6 11 15 15 Average Carried 10 | 2 9 11 2 Final Capacity 15 | 8 15 15 5 Final Carried 13 | 6 11 13 1 Scrap Engine Consumption 6 | . . . 6 Class Distribution -------------------- 100% | Mutant Dominant Class ---------------- Mutant | -10/Materials Mutant | -10/Subcaves Mutant | -9/Recycling Resources | -11 -10 -10 -9 ----------- Run | Yrd Mat Sub Rec Matter Collected 1256 | 199 201 659 197 Remotely . | . . . . Salvage Created 847 | . 208 261 378 Parts 41 | . 10 20 11 Haulers Intercepted 1 | . 1 . . Recyclers Shooed 4 | . . . 4 Parts Field Recycled . | . . . . Retrieved Matter . | . . . . Parts Self-Destructed 14 | . . 14 . Prevented . | . . . . Kills | -11 -10 -10 -9 ------- Run | Yrd Mat Sub Rec Combat Hostiles Destroyed 16 | . 2 13 1 Guns 5 | . 2 2 1 Cannons 3 | . . 3 . AOE 8 | . . 8 . Classes Destroyed 10 | . 4 4 2 Worker 1 | . 1 . . Hauler 1 | . 1 . . Recycler 5 | . . . 5 Turret 2 | . . 2 . Watcher 1 | . 1 . . Swarmer 2 | . . 2 . Grunt 2 | . 2 . . Sentry 1 | . . . 1 Artisan 1 | . . 1 . Subdweller 11 | . . 11 . Best Kill Streak 5 | . 2 5 3 Combat Bots Only 3 | . 2 3 1 Max Kills in Single Turn 2 | . 1 2 1 Gunslinging . | . . . . Exploded 2 | . . 2 . Melee . | . . . . Uniques/NPCs Destroyed . | . . . . Combat | -11 -10 -10 -9 -------- Run | Yrd Mat Sub Rec Hostile Shots Fired 143 | . 10 120 13 Missed 49 | . 2 44 3 Damage Taken 1740 | . 152 1443 145 Core 256 | . 30 197 29 Absorbed by Shields . | . . . . Core Remaining (%) 100 | 100 . . . Volleys Fired 137 | . 21 95 21 Largest 2 | . 2 2 2 Hottest 150 | . 140 150 69 Shots Fired 260 | . 42 176 42 Gun 151 | . 34 96 21 Cannon 70 | . . 49 21 Launcher 18 | . . 18 . Special 21 | . 8 13 . Kinetic 120 | . . 78 42 Thermal 90 | . 8 82 . Explosive 11 | . . 11 . Electromagnetic 39 | . 34 5 . Robot Hit Streak 10 | . 8 10 4 Robot Miss Streak 3 | . 3 3 3 Penetration Max . | . . . . Secondary Targets . | . . . . Shots Hit Robots 92 | . 17 58 17 Core Hits 44 | . 9 28 7 Critical Kills . | . . . . Critical Parts Destroyed . | . . . . Critical Strikes 2 | . . 1 1 Burn 1 | . . 1 . Blast 1 | . . . 1 Melee Attacks . | . . . . Impact . | . . . . Slashing . | . . . . Piercing . | . . . . Sneak Attacks . | . . . . Combat Hostiles . | . . . . Follow-up Attacks . | . . . . Damage Inflicted 2819 | . 315 2103 401 Guns 1025 | . 239 526 260 Cannons 268 | . . 127 141 Explosions 1403 | . 73 1330 . Melee . | . . . . Ramming 3 | . 3 . . Kinetic 1430 | . . 1029 401 Thermal 392 | . 73 319 . Explosive 692 | . . 692 . Electromagnetic 302 | . 239 63 . Impact . | . . . . Slashing . | . . . . Piercing . | . . . . Highest Corruption . | . . . . Average Corruption . | . . . . Corruption Purged . | . . . . Corruption Blocked . | . . . . Overload Shots . | . . . . Overflow Damage 39 | . . 39 . Projectiles . | . . . . Explosions 39 | . . 39 . Melee . | . . . . Knockbacks 3 | . . . 3 Impact . | . . . . Kinetic 3 | . . . 3 Secondary . | . . . . Self-Inflicted Damage 40 | . 37 3 . Shots 2 | . 1 1 . Rammed 1 | . 1 . . Targets Rammed 1 | . 1 . . Kicked . | . . . . Crushed . | . . . . Highest Temperature 183 | . 183 5 117 Average Temperature 55 | . 71 4 35 Received Heat Transfer 552 | . 66 396 90 Siege Activations . | . . . . Robots Corrupted 1 | . 1 . . Combat Hostiles . | . . . . Parts Fried 2 | . 2 . . Impact Corruptions . | . . . . Robots Melted . | . . . . Combat Hostiles . | . . . . Parts Melted 1 | . . 1 . Heat Transferred 979 | . 100 879 . Parts Sabotaged . | . . . . Parts Stolen . | . . . . Parts Stripped . | . . . . Power Chain Reactions 2 | . 2 . . Alert | -11 -10 -10 -9 ------- Run | Yrd Mat Sub Rec Peak Influence 364 | . 81 . 364 Initial 307 | . . . 307 Average 174 | . 48 . 302 Maximum Alert Level 1 | . . . 1 Low Security (%) 55 | 100 100 . 11 Level 1 44 | . . . 88 Level 2 . | . . . . Level 3 . | . . . . Level 4 . | . . . . Level 5 . | . . . . High Security . | . . . . Max Security . | . . . . Squads Dispatched 2 | . 2 . . Investigation 1 | . 1 . . Extermination . | . . . . Reinforcement 1 | . 1 . . Assault . | . . . . Garrison . | . . . . Intercept . | . . . . Searches Triggered . | . . . . Construction Impeded . | . . . . Haulers Reinforced . | . . . . Active Scanning Responses . | . . . . Cargo Convoy Interrupts . | . . . . Stealth | -11 -10 -10 -9 --------- Run | Yrd Mat Sub Rec Distress Signals 1 | . . . 1 Communications Jammed . | . . . . Distress Signals . | . . . . Times Spotted 56 | . 5 49 2 Peak Tracking Total 5 | . 2 5 1 Tactical Retreats 5 | . 1 4 . Traps | -11 -10 -10 -9 ------- Run | Yrd Mat Sub Rec Traps Triggered 3 | . 1 2 . Indirectly . | . . . . Trap Hack Attempts . | . . . . Triggered . | . . . . Disarmed . | . . . . Reprogrammed . | . . . . Reused 2 | . . 2 . Traps Extracted . | . . . . Installed 2 | . . 2 . Triggered 1 | . . 1 . Most Traps Carried 1 | . . 1 . Machines | -11 -10 -10 -9 ---------- Run | Yrd Mat Sub Rec Machines Disabled 6 | . 1 4 1 Max in Single Turn 1 | . 1 1 1 Machines Repaired . | . . . . Machines Dismantled . | . . . . Machines Sabotaged . | . . . . Overloaded Fab Kills . | . . . . Hacking | -11 -10 -10 -9 --------- Run | Yrd Mat Sub Rec Machines Accessed 10 | . 1 2 7 Terminals 5 | . 1 . 4 Fabricators . | . . . . Repair Stations . | . . . . Recycling Units 3 | . . . 3 Scanalyzers . | . . . . Garrison Access . | . . . . Total Hacks 30 | . 2 11 17 Successful 18 | . . 11 7 Failed 12 | . 2 . 10 Catastrophic 4 | . 1 . 3 Database Lockouts . | . . . . Manual 9 | . . . 9 Terminals 12 | . 2 . 10 Fabricators . | . . . . Repair Stations . | . . . . Recycling Units 7 | . . . 7 Scanalyzers . | . . . . Garrison Access . | . . . . Terminal Hacks 11 | . . 11 . Record 10 | . . 10 . Derelict Proto ID Bank 1 | . . 1 . Fabricator Hacks . | . . . . Repair Station Hacks . | . . . . Recycling Unit Hacks 3 | . . . 3 Report Inventory 3 | . . . 3 Scanalyzer . | . . . . Garrison Access Hacks . | . . . . Unauthorized Hacks 4 | . . . 4 Terminals 1 | . . . 1 Botnet 1 | . . . 1 Fabricators . | . . . . Repair Stations . | . . . . Recycling Units 3 | . . . 3 Tunnel 3 | . . . 3 Scanalyzers . | . . . . Garrison Access . | . . . . Data Cores Recovered . | . . . . Used . | . . . . Hacking Detections 6 | . 1 . 5 Full Trace Events 2 | . . . 2 Feedback Events . | . . . . Feedback Blocked . | . . . . Robot Schematics Acquired . | . . . . Robots Built . | . . . . Authchips . | . . . . Time . | . . . . Total Robot Build Rating . | . . . . Part Schematics Acquired . | . . . . Parts Built . | . . . . Authchips . | . . . . Time . | . . . . Total Part Build Rating . | . . . . Parts Repaired . | . . . . Time . | . . . . Parts Recycled . | . . . . Recycled Matter . | . . . . Retrieved Matter . | . . . . Retrieved Components . | . . . . Parts Scanalyzed . | . . . . Part Schematics Acquired . | . . . . Parts Damaged . | . . . . Bothacking | -11 -10 -10 -9 ------------ Run | Yrd Mat Sub Rec Used RIF Installer . | . . . . Robots Hacked . | . . . . Non-combat . | . . . . Combat . | . . . . Robot Hacks Applied . | . . . . Relay Couplers Released . | . . . . Fabnet Peak Effective % . | . . . . Robots Rewired . | . . . . Allies Hacked . | . . . . Hacks Repelled . | . . . . Allies | -11 -10 -10 -9 -------- Run | Yrd Mat Sub Rec Total Allies . | . . . . Largest Group . | . . . . Highest-Rated Group . | . . . . Highest-Rated Ally . | . . . . Total Orders . | . . . . Ally Attacks . | . . . . Total Damage . | . . . . Kills . | . . . . Allies Corrupted . | . . . . Allies Melted . | . . . . Intel | -11 -10 -10 -9 ------- Run | Yrd Mat Sub Rec Robot Analysis Total . | . . . . Derelict Logs Recovered 1 | . . 1 . Drone Launches . | . . . . Drone Recoveries . | . . . . Exploration | -11 -10 -10 -9 ------------- Run | Yrd Mat Sub Rec Turns Passed 5395 | 62 540 4175 618 Spaces Moved 3148 | 63 471 2295 319 Core 13 | 12 . 1 . Treads 1425 | . . 1106 319 Legs 22 | . . 22 . Wheels 1688 | 51 471 1166 . Hover . | . . . . Flight . | . . . . Fastest Speed 50 | 50 80 95 160 Average Speed 149 | 74 87 162 160 Slowest Speed 700 | 80 95 700 160 Overloaded Moves . | . . . . Propulsion Burnouts . | . . . . Robots Hopped . | . . . . Cave-ins Triggered . | . . . . Exploration Rate (%) 42 | 5 49 74 41 Regions Visited 3 Branch Regions 2 Pre-discovered Areas 4 | . . 1 3 Known Exits Taken . | . . . . Unknown Exits Taken 3 | 1 1 1 . Scrap Searched 9 | . . 9 . Spaces Dug 6 | . 2 3 1 Terrain Destroyed 159 | . 8 146 5 Melee . | . . . . Projectile 17 | . 2 10 5 AOE 142 | . 6 136 . Terrain Rammed . | . . . . Walls Destroyed . | . . . . Machines Disabled . | . . . . Actions | -11 -10 -10 -9 --------- Run | Yrd Mat Sub Rec Total 3548 | 75 542 2544 387 Wait 90 | . 23 65 2 Move 3145 | 62 470 2294 319 Hop . | . . . . Pick Up 40 | 7 7 25 1 Fast Attach 21 | 5 4 9 3 Attach 16 | 1 . 14 1 Detach 12 | . 2 7 3 Swap 16 | . 6 10 . Drop 33 | . 8 20 5 Fire 137 | . 21 95 21 Melee . | . . . . Ram 1 | . 1 . . Kick . | . . . . Crush . | . . . . Escape Stasis . | . . . . Rewire 32 | . . . 32 Trap 2 | . . 2 . Miscellaneous 3 | . . 3 . Route ------- -11/Scrapyard -10/Materials (discovered 2 exits: [*Mat] / *Sub) -10/Subcaves (discovered 3 exits: [*Mat x2] / *Rec) -9/Recycling History --------- Turn | Location | Event 5 | -11/Scrapyard | Discovered new exit (range 15) 63 | -11/Scrapyard | Entered Materials 307 | -10/Materials | Build established: Mutant 316 | -10/Materials | Discovered new exit (range 11) 413 | -10/Materials | Discovered new exit (range 3) 603 | -10/Materials | Entered Subcaves 738 | -10/Subcaves | Ambushed by Subdweller buried in earth 845 | -10/Subcaves | Lost 7 parts (1p3n3w) 1090 | -10/Subcaves | Core integrity fell below 50% 1163 | -10/Subcaves | Visited Clippyterm 1303 | -10/Subcaves | Disturbed a concealed Subdweller 2126 | -10/Subcaves | Shifting Twisted Machinery released Sub. Machine Gun 2549 | -10/Subcaves | A swath of the cavern ceiling suddenly collapsed 2809 | -10/Subcaves | Shifting Twisted Machinery released Piercing Trap 3713 | -10/Subcaves | Learned Materials stockpile data 3812 | -10/Subcaves | Visited 4L-MR0's lab 3954 | -10/Subcaves | Shifting Twisted Machinery released Hvy. Riot Gun 4082 | -10/Subcaves | Shifting Twisted Machinery released Sub. Beam Cannon 4325 | -10/Subcaves | Ambushed by Subdweller buried in earth 4382 | -10/Subcaves | Discovered new exit (range 16) 4466 | -10/Subcaves | Discovered new exit (range 7) 4474 | -10/Subcaves | Learned location of Zion (-7) 4474 | -10/Subcaves | Met a Zionite searching for "candidates" 4480 | -10/Subcaves | Discovered new exit (range 5) 4582 | -10/Subcaves | Core integrity fell below 20% 4650 | -10/Subcaves | Ambushed by Subdweller buried in earth 4778 | -10/Subcaves | Entered Recycling 4785 | -9/Recycling | Found Scrap Engine 5396 | -9/Recycling | Destroyed by Y-45 Defender with Beam Rifle Last Messages --------------- 05279_ Connecting with Recycling Unit... >>Recycling(Report) Matter reserves: 0 Inventory: Empty >>Force(Tunnel) DISCOVERED[-10/Mines] 05311_ Acquired 4 matter. 05321_ Connecting with Recycling Unit... >>Recycling(Report) Matter reserves: 0 Inventory: Empty >>Force(Tunnel) DISCOVERED[-4/Factory] 05329_ Discarded Scrap Engine. 05334_ Acquired 4 matter. 05337_ Acquired 39 matter. 05368_ U-05 Engineer builds a Wall. 05393_ Y-45 Defender springs to life. 05393_ Critical hit (Burn: +37). [Achievement: Tester] Map ----- +----------------------------------------------------+ | #???????????????????????????????????????? | | #???????????????????????????????????????? | | #???????????????????????????????????????? | | +#########???????????????????????????????????????? | | #?????????????????????????????????????????? | | #?????????????????????????????????????????? | | #?????????????????????????????????????????? | | """ ###???????????????????????????????????????? | | """ ""#???????????????????????????????????????? | | """ T"#???????????????????????????????????????? | | ""#???????????????????????????????????????? | | """ ###???????????????????????????????????????? | | """ #?????????????????????????????????????????? | | """ #?????????????????????????????????????????? | | #?????????????????????????????????????????? | | #?????????????????????????????????????????? | | ########?????????????????????????????????????????? | | ?????????????????????????????????????????????????? | | ?????????????????????????????????????????????????? | | #########?????????????????????#??????????????????? | | #"""#"""#?????????????###????r#??????????????????? | | #"Y #"Y"###############Y##### #??????????????????? | | [ u #??????????????????? | | r +??????????????????? | | u #??????????????????? | | ######### #####+#########@#####??????????????????? | | #??### ##?# ?????????????????????? | | """ #????# ##?#"" #????????????????????? | | """ #????# ##?#"T #????????????????????? | | """ #????# #??#"" #????????????????????? | | #????# #??# "????????????????????? | | """ #????# #??# Y"???????????????????? | | """ #????# #??# ""???????????????????? | | """ #????# #??# ##???????????????????? | | #????####### ###??? #????????????????????? | | #??????????###??????? #????????????????????? | | #???????????????????? #????????????????????? | | #????????????????????? #????????????????????? | | ######???????????????????????????????????????????? | | ?????????????????????????????????????????????????? | | ?????????????????????????????????????????????????? | | | | | | | | | | | | | | | | | | | +----------------------------------------------------+ Best States ------------- Heat Dissipation 25 Coolant Potential 50 Energy Generation 15 Energy Capacity 200 Matter Stores 328 Matter Capacity 400 Sight Range 16 Terrain Scan Density 10 Armor Coverage 800 Evasion (%) 50 Targeting Accuracy 5 Recoil Reduction 2 Item Schematics ----------------- None Robot Schematics ------------------ None Fabricated ------------ Nothing Alien Tech Used ----------------- None Achievements -------------- Tester Challenges ------------ None Game ------ Seed ShadeSkeletonTube Manual? 0 Play Time 00:48:52 Cumulative 104.3 hours Start 2024.04.10 @ 18:47:23 End 2024.04.11 @ 00:02:41 Sessions 2 Manual Loads 0 Difficulty Rogue Special Mode None Game No. 79 Rogue 79 Adventurer 0 Explorer 0 Win Type - Total 0 Types 0/0/0/0/0/0/0/0/0 Lore% 50 Gallery% 50 Achievement% 40 Wizard Run 0 Options --------- Layout 1 ASCII 0 Keyboard 1 Movement Numpad Keybinds 0 Fullscreen 1 Font 24/Smallcaps Map View 50x35 Zoom Use 0% Tactical HUD 1 Map Filters NONE Filters NONE Steam 1 RUN: 0a5c9d8b-4836-4c1f-86ac-24f18de0f904